bitfinex/quotes_ETHUSD_20250430
["timestamp","ask_amount","ask_price","bid_price","bid_amount"]
[1746011803038,0.8268083,1810.2,1810.1,8.25624153]
[1746011803194,1.08782854,1810.9,1810.1,7.48584153]
[1746011803399,3.0,1810.8,1810.4,0.8222]
[1746011803599,3.0,1810.8,1810.5,4.559]
[1746011803799,3.0,1810.8,1810.5,4.69586609]
[1746011804034,0.30973196,1810.7,1810.5,4.69586609]
[1746011804235,0.8259519,1810.7,1810.5,4.69586609]
[1746011804573,0.30973196,1810.6,1810.5,4.69586609]
[1746011804773,0.8259519,1810.6,1810.5,4.69586609]
[1746011807477,1.5966519,1810.6,1810.5,4.69586609]
[1746011807654,1.9255328,1810.6,1810.5,4.69586609]
[1746011809289,1.92498864,1810.6,1810.5,4.69586609]
[1746011812213,4.92498864,1810.6,1810.5,4.69586609]
[1746011812602,4.92498864,1810.6,1810.5,4.559]
[1746011813100,4.92498864,1810.6,1810.5,4.69086392]
[1746011813308,9.68396636,1810.6,1810.5,4.69086392]
[1746011820071,9.68396636,1810.6,1810.5,0.13186392]
[1746011820226,9.75301183,1810.6,1810.5,0.13186392]
[1746011820559,9.68396636,1810.6,1810.5,0.13186392]
[1746011820761,9.68396636,1810.6,1810.2,4.557]
[1746011820926,9.68396636,1810.6,1810.5,0.13186392]
[1746011821128,9.68396636,1810.6,1810.2,4.557]
[1746011821355,9.35508546,1810.6,1810.2,4.557]
[1746011821555,0.51567578,1810.5,1810.3,0.13186392]
[1746011822375,0.51567578,1810.4,1810.3,0.89426392]
[1746011822676,0.82540774,1810.4,1810.3,0.89426392]
[1746011824336,0.30973196,1810.4,1810.3,0.89426392]
[1746011824519,0.30973196,1810.4,1810.3,1.43939031]
[1746011825046,0.30973196,1810.5,1810.3,1.43939031]
[1746011825247,0.30973196,1810.5,1810.4,0.7793]
[1746011825544,0.30973196,1810.5,1810.4,0.91410604]
[1746011825722,0.82632359,1810.5,1810.4,0.91410604]
[1746011828261,0.82632359,1810.5,1810.4,3.2114901]
[1746011828464,0.82632359,1810.5,1810.4,3.58025175]
[1746011828767,4.75897772,1811.3,1810.6,0.7763]
[1746011828926,4.75897772,1811.3,1810.9,0.7763]
[1746011829249,0.51633818,1811.2,1810.9,0.7763]
[1746011829425,0.30984403,1811.1,1810.9,0.7763]
[1746011829629,0.30984403,1811.1,1811.0,0.13282022]
[1746011829927,0.82618221,1811.1,1811.0,0.13282022]
[1746011830970,0.30984403,1811.1,1811.0,0.94112022]
[1746011831151,0.30984403,1811.1,1811.0,0.99632969]
[1746011831361,3.0,1811.6,1811.0,0.94112022]
[1746011831560,3.87927337,1811.6,1811.1,4.556]
[1746011831764,0.51529742,1811.5,1811.1,4.556]
[1746011831971,0.51529742,1811.4,1811.2,0.12877687]
[1746011832576,0.51529742,1811.5,1811.2,0.12877687]
[1746011833251,0.51529742,1811.4,1811.2,0.12877687]
[1746011833465,0.51529742,1811.4,1811.2,0.59725456]
[1746011833668,3.28719694,1811.6,1811.2,0.59725456]
[1746011834186,0.51468532,1811.5,1811.3,0.7917]
[1746011834572,0.51468532,1811.5,1811.4,0.12877687]
[1746011834767,3.28719694,1811.6,1811.3,0.7917]
[1746011835064,3.28719694,1811.6,1811.4,0.12877687]
[1746011835300,3.28719694,1811.6,1811.3,0.7917]
[1746011835502,3.28719694,1811.6,1811.4,0.12877687]
[1746011835805,0.51421093,1811.5,1811.3,0.7917]
[1746011836369,3.28719694,1811.6,1811.3,0.7917]
[1746011840083,3.28719694,1811.6,1811.2,0.46847769]
[1746011844308,3.28719694,1811.6,1811.3,0.7579]
[1746011845087,3.28719694,1811.6,1811.4,0.12017562]
[1746011845286,3.28719694,1811.6,1811.3,0.7579]
[1746011845287,3.28719694,1811.6,1811.5,4.554]
[1746011845489,3.80085143,1811.6,1811.5,4.67417562]
[1746011846027,0.80085143,1811.6,1811.5,4.67417562]
[1746011846181,0.80085143,1811.6,1811.5,5.95309318]
[1746011846525,0.51365449,1811.6,1811.5,24.73309318]
[1746011846826,0.05,1811.9,1811.5,23.92159318]
[1746011847016,0.05,1811.9,1811.8,0.811]
[1746011847520,0.05,1811.9,1811.8,0.92977963]
[1746011848315,0.05,1811.9,1811.8,1.47977963]
[1746011848517,0.05,1811.9,1811.8,1.7969733]
[1746011850112,0.05,1811.9,1811.8,0.9859733]
[1746011850310,4.80897772,1812.9,1811.8,3.49115167]
[1746011850508,4.80897772,1812.9,1812.6,0.8069]
[1746011850745,4.80897772,1812.9,1812.7,22.89356527]
[1746011850947,0.05,1812.9,1812.8,3.09625653]
[1746011851329,0.05,1812.9,1812.8,7.64825653]
[1746011852349,0.05,1812.9,1812.8,9.34041361]
[1746011852512,0.05,1812.9,1812.8,9.94556522]
[1746011852712,0.05,1812.9,1812.8,9.13866522]
[1746011852918,0.05,1812.9,1812.8,9.91396522]
[1746011853309,0.00211904,1813.4,1813.0,0.9753]
[1746011853533,0.00211904,1813.4,1813.3,3.01745708]
[1746011853714,0.00211904,1813.4,1813.3,3.31920279]
[1746011854045,0.00054868,1813.4,1813.3,10.87120279]
[1746011854257,0.00054868,1813.4,1813.3,1.07704571]
[1746011854555,0.00054868,1813.4,1813.3,3.01745708]
[1746011854722,0.0008,1813.4,1813.3,25.78845708]
[1746011855617,0.0008,1813.4,1813.3,27.2177766]
[1746011855852,0.0008,1813.4,1813.3,24.0963]
[1746011856679,0.0008,1813.4,1813.3,27.2177766]
[1746011856977,0.0008,1813.4,1813.3,29.93955426]
[1746011858577,0.0008,1813.4,1813.3,26.81707766]
[1746011859677,0.0008,1813.4,1813.3,22.26707766]
[1746011860178,0.0008,1813.4,1813.3,26.81607766]
[1746011860408,0.0008,1813.4,1813.3,22.26707766]
[1746011860682,0.0008,1813.4,1813.3,26.81607766]
[1746011861784,0.0008,1813.4,1813.3,22.26707766]
[1746011862083,0.7456,1813.8,1813.4,0.55]
[1746011862248,0.7456,1813.8,1813.4,3.23160777]
[1746011863279,0.05,1813.9,1813.4,3.23160777]
[1746011864497,0.05,1813.9,1813.5,0.05512685]
[1746011864693,0.05,1813.9,1813.4,6.40821065]
[1746011864886,0.05,1813.9,1813.5,1.3295]
[1746011866533,0.05,1813.9,1813.7,0.55]
[1746011866718,0.05,1813.9,1813.7,1.0598]
[1746011869219,0.05,1813.9,1813.8,0.05511815]
[1746011869396,0.05,1813.9,1813.8,4.548]
[1746011869805,0.05,1813.9,1813.8,5.098]
[1746011870718,0.05,1813.9,1813.8,4.548]
[1746011870899,0.05,1813.9,1813.8,5.0028]
[1746011871321,0.05,1813.9,1813.8,0.4548]
[1746011871633,0.8577,1813.9,1813.8,4.548]
[1746011871840,0.8577,1813.9,1813.5,0.83462629]
[1746011872036,0.8577,1813.9,1813.6,4.548]
[1746011872411,0.8577,1813.9,1813.5,0.7795]
[1746011872616,0.8577,1813.9,1813.4,3.23160777]
[1746011872617,0.8577,1813.9,1813.6,4.624]
[1746011872837,0.8577,1813.9,1813.7,0.4624]
[1746011873143,0.8577,1813.9,1813.8,4.624]
[1746011875404,0.8577,1813.9,1813.4,2.68160777]
[1746011875610,5.61667772,1813.9,1813.5,4.624]
[1746011875832,5.61667772,1813.9,1813.6,4.624]
[1746011876744,0.30725734,1813.8,1813.6,4.624]
[1746011877314,0.8059,1813.7,1813.3,18.204]
[1746011877641,0.8059,1813.7,1813.4,4.624]
[1746011877642,0.30725734,1813.6,1813.4,4.624]
[1746011877951,0.30725734,1813.6,1813.3,20.0244]
[1746011878128,0.30725734,1813.6,1813.5,4.624]
[1746011880136,0.30725734,1813.6,1813.3,20.0244]
[1746011880367,0.30725734,1813.6,1813.4,4.624]
[1746011880944,0.30725734,1813.5,1813.4,4.624]
[1746011882166,0.30725734,1813.5,1813.3,20.0244]
[1746011882467,0.30725734,1813.5,1813.4,4.624]
[1746011882673,0.30725734,1813.5,1813.4,7.14397749]
[1746011882860,0.30725734,1813.5,1813.4,7.08884]
[1746011884768,0.30725734,1813.5,1813.4,2.46484]
[1746011885076,0.30725734,1813.5,1813.4,7.63884]
[1746011886772,0.30725734,1813.5,1813.4,8.47124]
[1746011887964,0.30725734,1813.5,1813.4,7.08884]
[1746011888157,0.30725734,1813.5,1813.4,4.624]
[1746011889345,0.30725734,1813.5,1813.3,18.204]
[1746011889541,0.30725734,1813.5,1813.4,4.624]
[1746011890359,0.30725734,1813.5,1813.3,18.204]
[1746011890561,0.30725734,1813.5,1813.4,4.625]
[1746011890777,0.30725734,1813.5,1813.4,6.9079]
[1746011893552,0.30725734,1813.5,1813.4,4.625]
[1746011896858,0.804,1813.4,1812.8,0.7778]
[1746011897060,0.8176,1813.2,1812.9,4.625]
[1746011897265,0.8176,1813.2,1813.0,4.625]
[1746011897598,0.30725734,1813.1,1813.0,4.625]
[1746011901102,0.7979,1813.0,1812.4,19.0166]
[1746011901299,0.7979,1813.0,1812.5,6.52666]
[1746011902077,0.30903237,1812.9,1812.5,6.52666]
[1746011902705,0.30903237,1812.9,1812.5,1.90166]
[1746011902908,0.30903237,1812.9,1812.6,4.608]
[1746011903301,0.7979,1813.0,1812.6,4.608]
[1746011903510,0.7979,1813.0,1812.7,0.4608]
[1746011905118,0.30894104,1812.9,1812.7,0.4608]
[1746011905612,0.7979,1813.0,1812.5,1.95682204]
[1746011905817,0.7979,1813.0,1812.8,4.608]
[1746011907307,0.30880377,1812.9,1812.8,4.608]
[1746011907610,1.08140377,1812.9,1812.8,4.608]
[1746011907986,1.08140377,1812.9,1812.4,18.207]
[1746011908178,0.30880377,1812.8,1812.5,6.4287]
[1746011908886,0.7726,1812.9,1812.5,6.4287]
[1746011909519,0.7726,1812.9,1812.4,18.207]
[1746011909822,0.7726,1812.9,1812.6,4.608]
[1746011909997,0.7726,1812.9,1812.7,4.608]
[1746011910198,1.06038215,1812.9,1812.7,4.608]
[1746011910398,0.3085794,1812.8,1812.7,4.608]
[1746011911438,0.3085794,1812.8,1812.4,18.207]
[1746011911589,0.3085794,1812.8,1812.7,4.609]
[1746011912225,1.0754794,1812.8,1812.7,4.609]
[1746011912909,5.83445712,1812.8,1812.4,18.207]
[1746011913218,3.7858,1812.7,1812.5,4.609]
[1746011916525,3.7858,1812.7,1812.4,18.207]
[1746011916825,3.7858,1812.7,1812.5,4.609]
[1746011917621,3.7858,1812.7,1812.4,18.207]
[1746011917922,3.7858,1812.7,1812.6,4.609]
[1746011918122,4.09442704,1812.7,1812.6,4.609]
[1746011920128,4.09442704,1812.7,1812.4,18.207]
[1746011920297,4.09442704,1812.7,1812.5,4.609]
[1746011921122,0.30862704,1812.6,1812.5,4.609]
[1746011922805,0.30862704,1812.6,1812.5,6.8906]
[1746011923327,0.30862704,1812.7,1812.5,6.8906]
[1746011924929,0.30862704,1812.7,1812.6,0.8208]
[1746011925116,4.75897772,1812.8,1812.6,0.8208]
[1746011925832,4.75897772,1812.8,1812.5,6.8906]
[1746011926630,5.52697772,1812.8,1812.5,4.609]
[1746011926834,0.3095067,1812.7,1812.5,4.609]
[1746011928044,5.52697772,1812.8,1812.5,4.609]
[1746011928045,0.3095067,1812.6,1812.5,4.609]
[1746011932810,0.3095067,1812.6,1812.5,4.588]
[1746011935517,0.3095067,1812.6,1812.4,18.207]
[1746011935718,0.3095067,1812.6,1812.5,4.588]
[1746011935949,3.0,1812.7,1812.5,4.588]
[1746011936514,0.31010302,1812.6,1812.5,4.588]
[1746011938550,0.82694885,1812.6,1812.2,0.7726]
[1746011938718,0.82694885,1812.6,1812.3,4.588]
[1746011939129,0.51684583,1812.5,1812.3,4.588]
[1746011939676,0.31010302,1812.4,1812.3,4.588]
[1746011940154,0.82694885,1812.4,1812.3,4.588]
[1746011957641,3.82694885,1812.3,1812.2,4.589]
[1746011959128,4.60964885,1812.3,1812.2,4.589]
[1746011959349,9.36862657,1812.3,1812.2,4.589]
[1746011959533,10.48123164,1812.3,1812.2,4.589]
[1746011960252,10.88711029,1812.3,1812.2,4.589]
[1746011960558,11.17489014,1812.3,1812.2,4.589]
[1746011962461,9.65640642,1812.3,1812.2,4.589]
[1746011962659,8.87370642,1812.3,1812.2,4.589]
[1746011962960,5.87370642,1812.3,1812.2,4.589]
[1746011963319,8.87370642,1812.3,1812.2,4.589]
[1746011968062,4.1147287,1812.3,1812.2,5.3867]
[1746011972938,3.82694885,1812.3,1812.2,5.3867]
[1746011973268,3.82694885,1812.3,1812.2,4.589]
[1746011973451,5.96706264,1812.3,1812.2,4.589]
[1746011973767,5.89808895,1812.3,1812.2,4.589]
[1746011977471,10.65706667,1812.3,1812.2,4.589]
[1746011977635,8.58592657,1812.3,1812.2,4.589]
[1746011977840,10.27437178,1812.3,1812.2,4.589]
[1746011978261,9.96426876,1812.3,1812.2,4.589]
[1746011978463,10.27322528,1812.3,1812.2,4.589]
[1746011978777,10.2732252,1812.3,1812.2,4.589]
[1746011979072,9.96354933,1812.3,1812.2,4.589]
[1746011979243,10.27322526,1812.3,1812.2,4.589]
[1746011979444,10.27327477,1812.3,1812.2,4.589]
[1746011980471,10.27332924,1812.3,1812.2,4.589]
[1746011989896,8.58488403,1812.3,1812.2,4.589]
[1746011990100,5.58488403,1812.3,1812.2,5.12933]
[1746011994291,5.58488403,1812.3,1812.2,4.589]
[1746012006945,8.58488403,1812.3,1812.2,4.589]
[1746012009801,5.58488403,1812.3,1812.2,4.589]
[1746012010180,5.58488403,1812.3,1812.2,5.4142]
[1746012010386,0.82590631,1812.3,1812.2,5.4142]
[1746012010707,0.82590631,1812.3,1812.2,5.95562]
[1746012011577,0.51617591,1812.3,1812.2,5.95562]
[1746012013709,0.28776771,1812.6,1812.2,5.95562]
[1746012014178,0.51623438,1812.5,1812.2,5.95562]
[1746012014713,0.51623438,1812.4,1812.2,5.95562]
[1746012014887,0.82599724,1812.4,1812.3,0.595562]
[1746012017820,0.82599724,1812.4,1812.3,1.393662]
[1746012018020,0.82599724,1812.4,1812.3,1.943662]
[1746012018320,4.75897772,1813.0,1812.3,1.943662]
[1746012018527,3.7629,1813.2,1812.6,0.7927]
[1746012018724,0.51596853,1813.1,1812.7,4.559]
[1746012018895,0.51596853,1813.1,1812.7,5.09417]
[1746012019314,0.30944287,1813.0,1812.7,5.09417]
[1746012019536,2.51385661,1813.0,1812.7,5.09417]
[1746012019838,2.51385661,1813.0,1812.7,4.559]
[1746012019839,0.51596853,1812.9,1812.7,4.559]
[1746012020408,0.51596853,1812.8,1812.7,4.559]
[1746012021121,0.82537367,1812.8,1812.7,4.559]
[1746012021930,5.51381888,1812.8,1812.7,4.559]
[1746012023570,10.2727966,1812.8,1812.7,4.559]
[1746012023776,11.38121626,1812.8,1812.7,4.559]
[1746012024750,8.58435139,1812.8,1812.7,4.559]
[1746012031596,8.58435139,1812.8,1812.7,4.82961868]
[1746012036195,8.58435139,1812.8,1812.7,5.60561868]
[1746012036698,9.48001177,1812.8,1812.7,4.83861868]
[1746012036990,9.41105139,1812.8,1812.7,4.83861868]
[1746012038280,8.58435139,1812.8,1812.7,4.83861868]
[1746012039282,8.87211184,1812.8,1812.7,4.83861868]
[1746012040087,9.92816754,1812.8,1812.7,4.83861868]
[1746012043191,10.75316754,1812.8,1812.7,4.83861868]
[1746012049271,11.17314832,1812.8,1812.7,4.83861868]
[1746012054577,5.87211184,1812.8,1812.7,4.83861868]
[1746012054880,8.87211184,1812.8,1812.7,4.83861868]
[1746012055180,5.87211184,1812.8,1812.7,4.83861868]
[1746012055381,8.87211184,1812.8,1812.7,4.83861868]
[1746012058685,9.27636145,1812.8,1812.7,4.83861868]
[1746012058886,10.45578212,1812.8,1812.7,4.83861868]
[1746012068185,11.25758212,1812.8,1812.7,4.83861868]
[1746012072132,12.94602733,1812.8,1812.7,4.83861868]
[1746012074519,12.94602733,1812.8,1812.7,4.568]
[1746012074881,12.94602733,1812.8,1812.7,4.80584469]
[1746012075624,9.27636145,1812.8,1812.7,5.56784469]
[1746012075986,10.56055705,1812.8,1812.7,4.80584469]
[1746012078321,10.04458852,1812.8,1812.7,4.80584469]
[1746012078546,10.56142925,1812.8,1812.7,4.80584469]
[1746012078712,10.56142925,1812.8,1812.7,4.568]
[1746012078916,10.56142925,1812.8,1812.7,4.80584469]
[1746012080854,10.04458852,1812.8,1812.7,4.80584469]
[1746012081042,9.73518338,1812.8,1812.7,4.80584469]
[1746012081520,10.56219944,1812.8,1812.7,4.80584469]
[1746012082160,10.9825528,1812.8,1812.7,4.80584469]
[1746012083245,12.08082183,1812.8,1812.7,4.80584469]
[1746012086319,10.98256655,1812.8,1812.7,4.80584469]
[1746012088856,10.98256655,1812.8,1812.0,18.218]
[1746012088857,0.818,1812.6,1812.1,4.559]
[1746012089057,1.68844521,1812.2,1812.1,4.559]
[1746012089232,4.68844521,1812.2,1812.1,4.559]
[1746012089430,5.20533025,1812.2,1812.1,4.559]
[1746012089632,5.51547502,1812.2,1812.1,4.559]
[1746012089958,5.80335117,1812.2,1812.1,4.559]
[1746012096324,5.80335117,1812.2,1812.1,4.73787251]
[1746012097062,6.90081855,1812.2,1812.1,0.17887251]
[1746012097229,5.21237334,1812.2,1812.1,0.17887251]
[1746012097429,5.21237334,1812.2,1811.9,4.56]
[1746012097755,0.31014477,1812.1,1812.0,0.17041677]
[1746012097934,3.82702981,1812.1,1812.0,0.17041677]
[1746012098341,0.82702981,1812.1,1812.0,0.17041677]
[1746012099167,10.80258901,1812.1,1812.0,0.17041677]
[1746012104035,10.87157877,1812.1,1812.0,0.17041677]
[1746012104272,10.80258901,1812.1,1812.0,0.17041677]
[1746012104951,10.80258901,1812.1,1811.9,4.56]
[1746012105158,3.31014477,1812.0,1811.6,0.771]
[1746012105330,3.0,1811.8,1811.7,4.56]
[1746012105536,3.51688504,1811.8,1811.7,4.56]
[1746012106063,3.82702981,1811.8,1811.7,4.56]
[1746012106647,4.23243185,1811.8,1811.7,4.56]
[1746012110076,4.52015825,1811.8,1811.7,4.56]
[1746012115094,4.52015825,1811.8,1811.7,5.3392]
[1746012115293,4.52015825,1811.8,1811.7,5.51363337]
[1746012116179,4.52015825,1811.8,1811.7,0.95363337]
[1746012116557,4.52015825,1811.8,1811.7,0.7792]
[1746012123488,4.11475621,1811.8,1811.7,0.7792]
[1746012123694,0.82702981,1811.8,1811.7,0.7792]
[1746012123999,0.82702981,1811.8,1811.7,0.95253787]
[1746012135510,0.82702981,1811.8,1811.7,3.19098308]
[1746012135805,3.0,1812.1,1811.8,0.8287]
[1746012136293,0.51661104,1812.0,1811.9,0.17005179]
[1746012136493,0.82651231,1812.0,1811.9,0.17005179]
[1746012136695,0.82651231,1812.0,1811.8,0.8287]
[1746012136878,0.82651231,1812.0,1811.9,0.16895656]
[1746012137699,0.82651231,1812.0,1811.9,0.7867]
[1746012137895,0.82651231,1812.0,1811.9,0.95565656]
[1746012138895,0.82651231,1812.0,1811.9,0.16895656]
[1746012139318,0.82651231,1812.0,1811.8,0.8052]
[1746012139610,0.82651231,1812.0,1811.9,0.16895656]
[1746012139762,0.82651231,1812.0,1811.8,0.8052]
[1746012139968,0.82651231,1811.9,1811.8,0.8052]
[1746012145401,0.82651231,1811.9,1811.8,0.97542515]
[1746012145923,0.82651231,1811.9,1811.8,1.52542515]
[1746012146200,4.75897772,1812.5,1811.9,1.3415]
[1746012146369,3.0,1812.4,1812.0,0.7915]
[1746012146565,3.0,1812.4,1812.1,0.17022515]
[1746012146987,0.51648189,1812.3,1812.1,0.17022515]
[1746012147204,0.82637167,1812.3,1812.1,0.17022515]
[1746012147393,0.51648189,1812.2,1812.1,0.17022515]
[1746012147795,0.82637167,1812.2,1812.1,0.17022515]
[1746012150477,0.82621748,1812.2,1812.1,0.17022515]
[1746012168242,6.3443722,1812.2,1812.1,0.17022515]
[1746012182250,0.82621748,1812.2,1812.1,0.17022515]
[1746012183164,6.3443722,1812.2,1812.1,0.17022515]
[1746012186555,0.82621748,1812.2,1812.1,0.17022515]
[1746012186968,6.3443722,1812.2,1812.1,0.17022515]
[1746012189867,0.82621748,1812.2,1812.1,0.17022515]
[1746012191276,6.3443722,1812.2,1812.1,0.17022515]
[1746012197379,0.82621748,1812.2,1812.1,0.17022515]
[1746012212190,6.3443722,1812.2,1812.1,0.17022515]
[1746012212680,6.3443722,1812.2,1811.9,6.29365097]
[1746012212887,6.3443722,1812.2,1812.1,0.15200201]
[1746012213089,0.51648189,1812.1,1811.9,6.29365097]
[1746012213584,0.82621748,1812.0,1811.9,6.84365097]
[1746012214767,0.82621748,1812.0,1811.9,6.29386838]
[1746012215794,0.82621748,1812.0,1811.9,0.7748]
[1746012215998,5.51922183,1811.9,1811.5,0.8021]
[1746012216200,5.51958301,1811.8,1811.5,7.57163611]
[1746012216493,5.51958301,1811.8,1811.5,0.8021]
[1746012216652,0.51648189,1811.7,1811.5,0.8021]
[1746012216854,5.52027184,1811.6,1811.3,0.8021]
[1746012217192,0.51648189,1811.5,1811.3,7.54528984]
[1746012217508,0.82621748,1811.5,1811.3,7.54528984]
[1746012217793,0.51648189,1811.4,1811.3,1.222378]
[1746012218377,5.52021291,1811.6,1811.3,1.222378]
[1746012218894,0.5163198,1811.5,1811.3,1.222378]
[1746012219093,5.52021291,1811.6,1811.3,1.222378]
[1746012219886,5.52021291,1811.6,1811.3,6.74323396]
[1746012220194,5.52021291,1811.6,1811.4,0.14116074]
[1746012220574,0.51582167,1811.5,1811.3,6.74323396]
[1746012221096,5.52021291,1811.6,1811.3,6.74323396]
[1746012221299,8.51983858,1811.7,1811.3,6.74323396]
[1746012221605,6.03566543,1811.6,1811.3,6.74323396]
[1746012221763,6.03566543,1811.6,1811.2,11.04195979]
[1746012221962,0.5156388,1811.5,1811.2,5.52097452]
[1746012222499,5.52002663,1811.6,1811.2,5.52097452]
[1746012223203,5.52002663,1811.6,1811.3,5.52089649]
[1746012225795,5.52002663,1811.6,1811.2,5.52097452]
[1746012226002,5.52002663,1811.6,1811.2,12.28905674]
[1746012226500,6.33792663,1811.6,1811.2,6.7680642]
[1746012226709,6.33792663,1811.6,1811.2,12.28907381]
[1746012228203,6.33792663,1811.6,1811.3,5.52086771]
[1746012229105,6.33792663,1811.6,1811.1,0.05]
[1746012229106,9.28980141,1811.2,1811.1,0.05]
[1746012229308,14.04877913,1811.2,1811.1,0.05]
[1746012229813,14.56389934,1811.2,1811.1,0.05]
[1746012229996,14.87281064,1811.2,1811.1,0.18771402]
[1746012230308,14.87281064,1811.2,1811.1,0.05]
[1746012230474,16.91219438,1811.2,1811.1,0.18771402]
[1746012230674,16.91219438,1811.2,1811.1,0.05]
[1746012231304,16.91219438,1811.2,1811.1,0.18771402]
[1746012232170,17.32526906,1811.2,1811.1,0.18771402]
[1746012234679,19.01569722,1811.2,1811.1,0.18771402]
[1746012235117,19.01569722,1811.2,1811.1,0.05]
[1746012236111,19.01569722,1811.2,1811.1,0.19333558]
[1746012236317,19.01569722,1811.2,1811.1,0.05]
[1746012236517,19.30335368,1811.2,1811.1,0.19333558]
[1746012243643,19.30335368,1811.2,1811.1,0.198665]
[1746012255169,18.53475368,1811.2,1811.1,0.198665]
[1746012257667,18.05261334,1811.2,1811.1,0.05]
[1746012257966,18.05261334,1811.2,1811.1,0.19851891]
[1746012263447,18.05261334,1811.2,1811.1,0.05]
[1746012263647,18.05261334,1811.2,1811.1,0.19851891]
[1746012263849,18.05261334,1811.2,1811.1,0.05]
[1746012264074,18.05261334,1811.2,1811.1,0.19851891]
[1746012264761,18.05261334,1811.2,1811.1,0.05]
[1746012265349,18.84931334,1811.2,1811.1,0.19815373]
[1746012265571,18.84931334,1811.2,1811.1,0.05]
[1746012267484,5.52303103,1810.6,1810.5,0.8152]
[1746012267905,5.52303103,1810.6,1810.5,0.96335373]
[1746012268086,0.82403151,1810.6,1810.5,0.96335373]
[1746012268290,0.82403151,1810.6,1810.5,0.8152]
[1746012268788,0.82403151,1810.6,1810.5,0.96335373]
[1746012269561,9.34706254,1810.6,1810.5,0.96335373]
[1746012273403,9.34706254,1810.6,1810.1,0.05]
[1746012273404,5.52425146,1810.2,1810.1,0.05]
[1746012273603,8.52425146,1810.2,1810.1,0.05]
[1746012273909,9.1084379,1810.2,1810.1,1e-08]
[1746012274407,9.4173492,1810.2,1810.1,1e-08]
[1746012274583,11.15932651,1810.2,1810.1,1e-08]
[1746012274775,11.09026028,1810.2,1810.1,1e-08]
[1746012275175,12.29662172,1810.2,1810.1,1e-08]
[1746012279625,17.05559944,1810.2,1810.1,1e-08]
[1746012283018,18.74774662,1810.2,1810.1,1e-08]
[1746012283724,17.05559944,1810.2,1810.1,1e-08]
[1746012284694,17.05559944,1810.2,1810.1,0.13939273]
[1746012287429,17.05559944,1810.2,1810.1,1e-08]
[1746012288027,17.05559944,1810.2,1810.1,0.13939273]
[1746012289230,17.05559944,1810.2,1810.1,1e-08]
[1746012289429,17.05559944,1810.2,1810.1,0.13939273]
[1746012293911,17.34366891,1810.2,1810.1,0.13939273]
[1746012301546,16.55746891,1810.2,1810.1,0.13939273]
[1746012301708,11.8154916,1810.2,1810.1,0.13939273]
[1746012302039,11.39533016,1810.2,1810.1,0.96664648]
[1746012302345,14.39533016,1810.2,1810.1,0.96664648]
[1746012302842,14.39533016,1810.2,1810.1,0.96905945]
[1746012304965,8.8710787,1810.2,1810.1,0.96905945]
[1746012305852,14.39533016,1810.2,1810.1,0.96905945]
[1746012307116,8.8710787,1810.2,1810.1,0.96905945]
[1746012307748,14.39533016,1810.2,1810.1,0.96905945]
[1746012308624,8.8710787,1810.2,1810.1,0.96905945]
[1746012309853,14.39533016,1810.2,1810.1,0.96905945]
[1746012310351,8.8710787,1810.2,1810.1,0.96905945]
[1746012310948,14.39533016,1810.2,1810.1,0.96905945]
[1746012311461,8.8710787,1810.2,1810.1,0.96905945]
[1746012311655,14.39533016,1810.2,1810.1,0.96905945]
[1746012312368,16.08747734,1810.2,1810.1,0.96905945]
[1746012312570,16.08747734,1810.2,1810.1,0.14165945]
[1746012312571,18.84332618,1810.2,1810.1,0.14165945]
[1746012312867,16.08747734,1810.2,1810.1,0.14165945]
[1746012313471,15.26344583,1810.2,1810.1,0.14165945]
[1746012313673,16.08987743,1810.2,1810.1,0.14165945]
[1746012315568,16.90417743,1810.2,1810.1,0.14165945]
[1746012315963,16.90417743,1810.2,1810.1,1e-08]
[1746012316271,19.18928027,1810.2,1810.1,1e-08]
[1746012316458,19.18928027,1810.2,1810.1,0.13624859]
[1746012317544,18.37498027,1810.2,1810.1,0.13624859]
[1746012320577,19.13208027,1810.2,1810.1,0.13624859]
[1746012320976,19.13208027,1810.2,1810.1,1e-08]
[1746012321158,19.13208027,1810.2,1810.1,0.13719906]
[1746012321357,19.13208027,1810.2,1810.1,1e-08]
[1746012321980,19.13208027,1810.2,1810.1,0.13873439]
[1746012322179,19.13208027,1810.2,1810.1,1e-08]
[1746012322949,19.13208027,1810.2,1810.1,0.13931936]
[1746012323183,19.13208027,1810.2,1810.1,1e-08]
[1746012323682,19.13208027,1810.2,1810.1,0.13939249]
[1746012324476,19.13208027,1810.2,1810.1,1e-08]
[1746012325976,19.13208027,1810.2,1810.1,0.13939249]
[1746012328881,19.13208027,1810.2,1810.1,1e-08]
[1746012330455,19.13208027,1810.2,1810.1,0.13931936]
[1746012330656,19.13208027,1810.2,1810.1,1e-08]
[1746012330980,20.82422745,1810.2,1810.1,1e-08]
[1746012333495,18.37498027,1810.2,1810.1,1e-08]
[1746012333866,18.37498027,1810.2,1810.1,0.13931936]
[1746012334196,16.08987743,1810.2,1810.1,0.13931936]
[1746012345908,17.78202461,1810.2,1810.1,0.13931936]
[1746012346092,18.60752461,1810.2,1810.1,1e-08]
[1746012346278,19.59116091,1810.2,1810.1,1e-08]
[1746012346483,20.19810434,1810.2,1810.1,1e-08]
[1746012346684,22.81259987,1810.2,1810.1,1e-08]
[1746012349007,23.36259987,1810.2,1810.1,1e-08]
[1746012351004,7.21823029,1809.6,1809.5,0.7834]
[1746012351207,5.27549747,1809.6,1809.5,0.7834]
[1746012351369,10.80158058,1809.6,1809.5,0.92513271]
[1746012351571,13.80158058,1809.6,1809.5,0.92513271]
[1746012351907,14.08981357,1809.6,1809.5,0.92513271]
[1746012352088,14.39972542,1809.6,1809.5,0.92513271]
[1746012352478,8.87364231,1809.6,1809.5,0.92513271]
[1746012355988,4.11466459,1809.6,1809.5,0.92513271]
[1746012357306,9.6407477,1809.6,1809.5,0.92513271]
[1746012357511,11.16431133,1809.6,1809.5,0.7834]
[1746012358009,11.16431133,1809.6,1809.5,0.92535196]
[1746012359218,11.16431133,1809.6,1809.5,0.7834]
[1746012359414,9.6407477,1809.6,1809.5,0.7834]
[1746012359578,9.6407477,1809.6,1809.5,0.92535196]
[1746012360394,9.6407477,1809.6,1809.5,0.14195196]
[1746012360714,8.52669393,1809.4,1809.3,0.7529]
[1746012360924,8.83660578,1809.4,1809.3,0.89485196]